[Event "FIDE WSCC 65 2022"]
[Site "Assisi"]
[Date "2022.11.18"]
[Round "4.11"]
[White "Gruzmann, Boris"]
[Black "Kierzek, Matthias"]
[Result "1/2-1/2"]
[ECO "B12"]
[WhiteElo "2156"]
[BlackElo "2237"]
[Annotator "TA"]
[PlyCount "62"]
[EventDate "2022.11.14"]
[EventType "swiss"]
[EventCountry "ITA"]
[SourceTitle "playchess.com"]
[Source "ChessBase"]
[SourceQuality "1"]
[TimeControl "40/5400+30:1800+30"]

{[%evp 10,62,13,12,32,34,30,29,30,19,24,0,0,-2,34,24,16,-20,-33,-72,-64,-101,-107,-89,-81,-99,-92,-125,-114,-187,-187,-197,-228,-231,-87,-203,-116,-241,-168,-147,-4,-33,0,-47,-3,-78,-78,-77,26,22,64,45,62,0,187]} 1. e4 {[%emt 0:00:06]} c6 {[%emt 0:00:05]} 2. d4 {[%emt 0:00:23]} d5 {[%emt 0:00:05]} 3. e5 {[%emt 0:00:15]} Bf5 {[%emt 0:00:05]} 4. Nd2 {[%emt 0:00:28]} e6 {[%emt 0:00:09]} 5. Nb3 {[%emt 0:00:13]} Nd7 {[%emt 0:00:12]} 6. Nf3 {[%emt 0:00:24]} Ne7 {[%emt 0:00:17] B12: Caro-Kann: Advance Variation.} 7. Be2 {[%emt 0:01:24]} h6 {[%emt 0:00:15]} 8. O-O {[%emt 0:00:23]} g5 {[%emt 0:00:04] White has an edge.} 9. Ne1 {[%emt 0:02:14] 9.a4 is the modern continuation.} Qc7 {[%emt 0:00:37]} 10. f4 {[%emt 0:05:58]} c5 {[%emt 0:01:12]} 11. c3 {[%emt 0:06:30]} c4 {[%emt 0:05:31]} 12. Nd2 {[%emt 0:00:17]} gxf4 {[%emt 0:15:52]} 13. Bh5 {[%emt 0:01:05]} Ng6 $36 {[%emt 0:02:53][%mdl 2048] [#] Black has some pressure.} 14. Ndf3 $146 {[%emt 0:04:51]} ({Predecessor:} 14. Bxg6 Bxg6 15. Ndf3 O-O-O 16. Bxf4 Be4 17. Nd2 Bg6 18. Ndf3 Rh7 19. Qd2 Qc6 20. Kh1 {½-½ (75) Mokshanov,A (2461)-Bukavshin,I (2618) Loo 2015}) 14... Be7 {[%emt 0:03:28]} 15. Bxg6 {[%emt 0:01:31]} fxg6 {[%emt 0:01:12][%cal Bf7g6,Bg6g5,Bg5g4][%mdl 32]} 16. Bxf4 {[%emt 0:00:13]} g5 {[%emt 0:01:33]} 17. Bg3 {[%emt 0:03:18]} h5 {[%emt 0:10:31]} 18. h4 {[%emt 0:03:50]} g4 {[%emt 0:00:49]} 19. Ng5 {[%emt 0:00:17]} (19. Nd2 $17) 19... Bxg5 $19 {[%emt 0:01:22]} 20. hxg5 {[%emt 0:00:09][%cal Of1f5]} h4 {[%emt 0:02:01]} 21. Bf4 {[%emt 0:01:11]} h3 {[%emt 0:04:26]} (21... O-O-O $1 $19 {has better winning chances. Threatens to win with ...Nf8.} 22. b4 h3) 22. Rf2 {[%emt 0:00:50] [#]} (22. g3 $17) 22... O-O-O {[%emt 0:05:04]} (22... hxg2 $1 $19 {Hoping for ...Rh1+.} 23. Rxg2 O-O-O) 23. Qd2 {[%emt 0:06:09]} (23. g3 $17) 23... Nf8 {[%emt 0:01:48]} ({And not} 23... Be4 24. g3 $11) 24. g3 {[%emt 0:01:23] [#]} Ng6 {[%emt 0:02:22]} ({Better is} 24... h2+ $1 $17 25. Kh1 (25. Rxh2 $2 Rxh2 26. Qxh2 Ng6 $19) 25... Ng6) 25. Kh2 $11 {[%emt 0:00:22]} Rhf8 {[%emt 0:04:37]} 26. Be3 {[%emt 0:06:52]} (26. Nc2 $11 {deserves consideration.}) 26... Rf7 {[%emt 0:03:40]} 27. Rc1 {[%emt 0:01:19]} (27. Nc2 $11) 27... Rdf8 $17 {[%emt 0:00:35]} 28. b3 {[%emt 0:02:27]} Be4 {[%emt 0:02:45]} (28... Qa5 $17) 29. Rf6 $11 {[%emt 0:00:38]} Bf5 {[%emt 0:11:27]} 30. Qe2 {[%emt 0:01:30]} Ne7 {[%emt 0:00:52]} 31. Bf4 {[%emt 0:06:00]} (31. Nc2 $14) 31... Qc6 $2 {[%emt 0:03:24] Black had all chances to win.  Weighted Error Value: White=0.29 (precise) /Black=0.34} (31... Qa5 $1 $11) 1/2-1/2

[Event "FIDE WSCC 65 2022"]
[Site "Assisi"]
[Date "2022.11.18"]
[Round "4.12"]
[White "Chapman, Terry P D"]
[Black "Smolin, Sergey"]
[Result "1-0"]
[ECO "A42"]
[WhiteElo "2216"]
[BlackElo "2106"]
[Annotator "TA"]
[PlyCount "129"]
[EventDate "2022.11.14"]
[EventType "swiss"]
[EventCountry "ITA"]
[SourceTitle "playchess.com"]
[Source "ChessBase"]
[SourceQuality "1"]
[TimeControl "40/5400+30:1800+30"]

{[%evp 14,129,51,50,87,49,46,-20,-22,-40,-39,-45,-35,-25,12,0,44,-18,0,-124,-119,-154,-75,-167,-8,-6,-8,-8,35,43,70,72,70,72,68,81,78,72,68,37,47,41,109,65,81,85,83,8,240,19,19,0,0,0,27,19,26,20,19,20,20,13,81,82,96,52,59,59,59,58,54,52,116,116,116,116,154,155,223,229,295,291,287,297,277,277,282,277,250,212,215,214,264,215,220,187,181,184,220,211,241,166,250,227,250,250,992,294,618,606,29978,29978,29975,29976,29980,29980,29990,29989]} 1. d4 {[%emt 0:00:07]} g6 {[%emt 0:00:15]} 2. c4 {[%emt 0:00:06]} Bg7 {[%emt 0:00:15]} 3. Nc3 {[%emt 0:00:12]} d6 {[%emt 0:00:11]} 4. e4 {[%emt 0:00:28]} e5 {[%emt 0:00:22]} 5. Nge2 {[%emt 0:02:33]} exd4 {[%emt 0:00:52]} 6. Nxd4 {[%emt 0:00:06]} Ne7 {[%emt 0:00:11]} 7. Be3 {[%emt 0:00:50]} Nbc6 {[%emt 0:00:09]} 8. h4 {[%emt 0:03:07]} O-O {[%emt 0:17:55] A42: Modern Defence: Averbakh Variation.} 9. Qd2 {[%emt 0:05:05]} f5 {[%emt 0:00:19]} 10. Nxc6 {[%emt 0:07:44]} (10. O-O-O $14) 10... bxc6 $11 {[%emt 0:06:37] The position is equal.} 11. h5 {[%emt 0:16:18]} fxe4 {[%emt 0:01:55]} 12. hxg6 {[%emt 0:00:15]} Nxg6 {[%emt 0:00:25]} 13. Nxe4 {[%emt 0:15:49] [#]} Ne5 $146 {[%emt 0:08:17]} (13... Qe7 $5 {[%cal Re7e4]} 14. Nc3 Bg4 $15) ({Predecessor:} 13... Qe7 14. Nc3 Bg4 15. Bd3 Rae8 16. O-O Ne5 17. Rfe1 Qf7 18. c5 Nf3+ 19. gxf3 Bxf3 {½-½ (31) Kosic,D (2473)-Strikovic,A (2481) Valjevo 2018}) 14. Be2 {[%emt 0:02:46]} Qe8 {[%emt 0:06:05]} (14... Qe7 $5 {[%cal Ra8b8]}) 15. Ng3 {[%emt 0:10:46]} (15. Bh6 $14 Bxh6 16. Qxh6) 15... Rb8 {[%emt 0:10:48][%cal Ob8b2]} 16. Rb1 {[%emt 0:03:30]} ({Don't play} 16. Qc2 Qg6 17. Qxg6 Nxg6 $17) (16. O-O-O $11) 16... Qg6 $17 {[%emt 0:00:50]} 17. Qd1 {[%emt 0:04:31]} c5 {[%emt 0:02:02]} ({Black should try} 17... Bg4 {And now ...Bxe2 would win.} 18. O-O Rbe8) 18. Nh5 {[%emt 0:02:22]} (18. Bh5 $17 {is a better defense.} Qd3 19. Be2 Qxd1+ 20. Kxd1) 18... Bh8 $2 {[%emt 0:01:27]} (18... Bg4 $19 {Hoping for ...Bxe2.} 19. Nxg7 Bxe2 20. Kxe2 Qxg7) 19. Nf4 $11 {[%emt 0:01:06] [#]} Rxf4 {[%emt 0:10:15]} 20. Bxf4 {[%emt 0:00:01]} Qxg2 {[%emt 0:01:17]} (20... Bf5 $5 {[%cal Rf5b1]} 21. Rh5 (21. Qd5+ Be6 $17) 21... Nf7 $11) 21. Rh5 $36 {[%emt 0:02:56][%mdl 2048] Strongly threatening Rg5+. White fights for an advantage.} Qe4 {[%emt 0:00:29]} 22. Qd5+ {[%emt 0:02:34]} Qxd5 {[%emt 0:00:06]} 23. cxd5 {[%emt 0:00:02]} Ng6 {[%emt 0:00:14][%csl LRb2,LRf4]} 24. Bd2 {[%emt 0:04:12]} Rxb2 {[%emt 0:00:37]} 25. Rxb2 {[%emt 0:00:16]} Bxb2 {[%emt 0:00:11]} 26. Ba5 {[%emt 0:06:06]} Be5 {[%emt 0:00:08]} 27. Bxc7 {[%emt 0:00:47]} Kg7 {[%emt 0:01:26]} (27... Nf4 $14) 28. Bc4 {[%emt 0:02:24] White is more active.} Bg4 {[%emt 0:03:10]} 29. Rg5 {[%emt 0:02:02]} Bf3 {[%emt 0:00:06] [#]} 30. Bb3 {[%emt 0:04:31]} (30. Be2 $1 $16 {[%cal Re2f3]} Be4 31. f3) 30... Bc3+ {[%emt 0:04:14]} 31. Kf1 {[%emt 0:00:02]} Be5 {[%emt 0:00:04] Against Rg3} 32. Ke1 {[%emt 0:00:24]} Bc3+ {[%emt 0:00:05]} 33. Kf1 {[%emt 0:00:03]} Be5 {[%emt 0:00:04] [#] Against Rg3} 34. Rg3 $1 {[%emt 0:01:44]} Bxg3 35. fxg3 {[%emt 0:00:01][%mdl 4096] Endgame Threatens to win with Kf2. KBB-KBN} c4 {[%emt 0:04:42]} 36. Bxc4 {[%emt 0:00:14]} Ne5 {[%emt 0:00:04]} 37. Bb3 {[%emt 0:00:31]} Nf7 {[%emt 0:00:04]} (37... Ng4 $1 $11 {remains equal.}) 38. Kf2 $16 {[%emt 0:00:27]} Bh1 {[%emt 0:00:15]} 39. Ke3 {[%emt 0:01:29]} Kf6 {[%emt 0:00:06]} 40. Kd4 {[%emt 0:00:37]} Ke7 $1 {[%emt 0:00:06]} 41. Bb8 {[%emt 0:03:26]} a6 $1 {[%emt 0:04:42]} 42. Bc4 {[%emt 0:06:14]} Ne5 {[%emt 0:02:54] White leaves nothing to chance now.} (42... a5 $14) 43. Bxa6 {[%emt 0:01:35]} Nf3+ {[%emt 0:00:20]} 44. Ke3 {[%emt 0:02:39]} Ne5 {[%emt 0:00:13] [#]} 45. Bb7 $1 {[%emt 0:01:37]} Kd7 {[%emt 0:00:37]} (45... Bf3 $16 46. Kd4 Bg2) 46. Kd4 $18 {[%emt 0:08:14]} Nf3+ {[%emt 0:02:46]} 47. Kc3 {[%emt 0:00:43]} Ng5 {[%emt 0:00:33]} 48. a4 {[%emt 0:01:19]} Ne4+ {[%emt 0:00:27]} 49. Kd4 {[%emt 0:00:40] Black must now prevent a5.} Nc5 {[%emt 0:00:25]} 50. Bc6+ {[%emt 0:00:12]} Ke7 {[%emt 0:00:15]} 51. Kc4 {[%emt 0:03:36]} Bf3 {[%emt 0:00:29]} 52. Ba7 {[%emt 0:01:21]} Be2+ {[%emt 0:00:37]} 53. Kd4 {[%emt 0:00:56]} Nd7 {[%emt 0:02:02]} 54. a5 {[%emt 0:00:36]} Kd8 {[%emt 0:00:13]} 55. Kc3 {[%emt 0:02:09]} Kc8 {[%emt 0:00:30]} 56. Bd4 {[%emt 0:00:32] Prevents Nf6.} Kc7 {[%emt 0:05:12]} 57. Kd2 {[%emt 0:00:29]} Ba6 {[%emt 0:00:14]} (57... Bc4 {was called for.} 58. Kc3 Be2) 58. Ke3 {[%emt 0:00:22]} Nc5 {[%emt 0:05:56]} 59. g4 {[%emt 0:01:10]} Bc8 $2 {[%emt 0:01:00]} (59... h6 60. Be8 Nb3) 60. g5 $2 {[%emt 0:01:00]} (60. Bxc5 {White threatens Bb6+ and mate.} dxc5 61. g5) 60... Nd7 {[%emt 0:02:44]} (60... Na6 61. Bb6+ Kb8) 61. Bb5 {[%emt 0:01:22]} Nc5 {[%emt 0:00:29] Prevents a6.} 62. Bxc5 {[%emt 0:00:48] White mates.} dxc5 {[%emt 0:00:03]} 63. Bd3 {[%emt 0:01:00]} Kd6 {[%emt 0:00:05]} 64. a6 {[%emt 0:00:49]} Kxd5 {[%emt 0:00:24]} 65. Be4+ {[%emt 0:00:15] Weighted Error Value: White=0.29 (precise) /Black=0.45} 1-0

[Event "FIDE WSCC 65 2022"]
[Site "Assisi"]
[Date "2022.11.18"]
[Round "4.13"]
[White "Tsifanskaya, Ludmila A"]
[Black "De Jong, Tom"]
[Result "1/2-1/2"]
[ECO "D02"]
[WhiteElo "1919"]
[BlackElo "2216"]
[Annotator "TA"]
[PlyCount "62"]
[EventDate "2022.11.14"]
[EventType "swiss"]
[EventCountry "ITA"]
[SourceTitle "playchess.com"]
[Source "ChessBase"]
[SourceQuality "1"]
[TimeControl "40/5400+30:1800+30"]

{[%evp 15,62,56,56,54,44,54,51,9,3,0,0,0,0,15,10,0,0,-3,-3,-38,-28,-96,-66,-93,-87,-77,-36,-23,-25,-26,0,0,0,0,0,-58,0,0,0,0,0,0,0,0,0,0,0,0,0]} 1. Nf3 {[%emt 0:00:05]} d5 {[%emt 0:00:10]} 2. g3 {[%emt 0:00:06]} c5 {[%emt 0:00:14]} 3. Bg2 {[%emt 0:00:06]} Nc6 {[%emt 0:00:56]} 4. O-O {[%emt 0:02:41]} Nf6 {[%emt 0:00:28]} 5. d4 {[%emt 0:00:36]} cxd4 {[%emt 0:01:52]} 6. Nxd4 {[%emt 0:00:09]} e5 {[%emt 0:00:27]} 7. Nxc6 {[%emt 0:00:06]} bxc6 {[%emt 0:00:02]} 8. c4 {[%emt 0:00:08]} Be6 {[%emt 0:00:52]} 9. Nc3 {[%emt 0:02:31] D02: 1 d4 d5 2 Nf3 sidelines, including 2...Nf6 3 g3 and 2...Nf6 3 Bf4.} Rc8 {[%emt 0:00:45]} 10. cxd5 {[%emt 0:02:05]} cxd5 {[%emt 0:00:10]} 11. Bg5 {[%emt 0:00:41][%cal Oc3d5] And now Nxd5! would win. White is slightly better.} d4 {[%emt 0:04:29]} 12. Ne4 {[%emt 0:04:15]} Be7 {[%emt 0:00:32]} 13. Nxf6+ {[%emt 0:03:12]} Bxf6 {[%emt 0:02:19]} 14. Bxf6 {[%emt 0:00:13]} gxf6 {[%emt 0:00:24]} 15. Qa4+ {[%emt 0:09:45]} Qd7 {[%emt 0:00:28] [#]} 16. Qxd7+ $146 {[%emt 0:00:35]} ({Predecessor:} 16. Qa3 Qe7 17. Qa4+ Kf8 18. Rfc1 Kg7 19. Bc6 Rc7 20. Rc2 h5 21. Rac1 h4 22. Be4 Rxc2 23. Rxc2 {½-½ (77) Doluhanova,E (2229)-Villegas,P (2364) Europe Echecs INT 2020}) 16... Kxd7 {[%emt 0:02:11]} 17. b3 {[%emt 0:10:34]} Rc2 {[%emt 0:05:59]} 18. f4 {[%emt 0:07:58]} (18. e3 $11) 18... Ke7 {[%emt 0:10:28]} ({Much weaker is} 18... Rxe2 $6 19. f5 Rxg2+ 20. Kxg2 Bd5+ 21. Kf2 $11) 19. Rf2 {[%emt 0:09:12][%cal Oe2e3]} Rhc8 {[%emt 0:00:48]} 20. Be4 {[%emt 0:00:33][%csl LRc2,LRh7]} Rc1+ {[%emt 0:05:30]} 21. Rxc1 {[%emt 0:01:36]} Rxc1+ {[%emt 0:00:02]} 22. Rf1 {[%emt 0:00:13]} Rxf1+ {[%emt 0:01:47]} 23. Kxf1 $11 {[%emt 0:00:02][%mdl 4096] Endgame KB-KB} f5 {[%emt 0:00:43]} 24. Bc2 {[%emt 0:00:26]} e4 {[%emt 0:02:43]} 25. e3 {[%emt 0:03:53]} ({White should try} 25. a3 $11) 25... d3 {[%emt 0:11:43]} ({But not} 25... dxe3 26. a3 $11 (26. Ke2 Kd6 $11)) ({Black should play} 25... Kd6 $1 $15) 26. Bd1 {[%emt 0:00:02] The position is equal.} Kd6 {[%emt 0:00:10]} 27. Ke1 {[%emt 0:00:13]} Kc5 {[%emt 0:00:15] [#] Strongly threatening ...Kb4.} 28. a3 {[%emt 0:00:16]} a5 {[%emt 0:00:48]} 29. Kd2 {[%emt 0:00:43]} Kb5 {[%emt 0:21:07]} 30. Kc3 {[%emt 0:00:16]} Kc5 {[%emt 0:01:37]} 31. h3 {[%emt 0:04:20]} Kd5 {[%emt 0:26:01] Weighted Error Value: White=0.16 (very precise) /Black=0.10 (very precise)} 1/2-1/2

[Event "FIDE WSCC 65 2022"]
[Site "Assisi"]
[Date "2022.11.18"]
[Round "4.14"]
[White "Pierangeli, Andrea"]
[Black "Petran, Peter"]
[Result "0-1"]
[ECO "A41"]
[WhiteElo "1779"]
[BlackElo "2213"]
[Annotator "TA"]
[PlyCount "102"]
[EventDate "2022.11.14"]
[EventType "swiss"]
[EventCountry "ITA"]
[SourceTitle "playchess.com"]
[Source "ChessBase"]
[SourceQuality "1"]
[TimeControl "40/5400+30:1800+30"]

{[%evp 9,102,-22,-15,-23,0,-22,-16,-26,-2,-14,-4,-6,0,0,0,-26,0,0,16,-22,-31,-55,-57,-72,-50,-152,-113,-152,-158,-157,-156,-222,-217,-257,-247,-306,-244,-280,-244,-302,-301,-289,-275,-291,-236,-285,-279,-390,-386,-373,-362,-465,-447,-504,-483,-565,-577,-564,-543,-528,-529,-477,-443,-801,-759,-1178,-1161,-1074,-844,-29975,-1551,-1757,-1392,-1551,-1495,-1520,-1520,-1423,-1304,-1260,-1285,-1552,-1554,-1315,-1232,-6133,-6064,-5448,-5065,-29978,-29979,-29979,-29980,-29979,-29980]} 1. d4 {[%emt 0:04:38]} g6 {[%emt 0:00:06]} 2. Bf4 {[%emt 0:00:16]} Bg7 {[%emt 0:00:06]} 3. Nf3 {[%emt 0:00:14]} d6 {[%emt 0:00:06]} 4. e3 {[%emt 0:00:27]} Nd7 {[%emt 0:00:11]} 5. Nbd2 {[%emt 0:02:50]} e5 {[%emt 0:00:09]} 6. Bg3 {[%emt 0:01:00] A41: 1 d4 d6: Tartakower System and Modern Defence.} Qe7 {[%emt 0:00:07]} 7. dxe5 {[%emt 0:01:04]} dxe5 {[%emt 0:00:06]} 8. Be2 {[%emt 0:02:23] The position is equal.} Ngf6 {[%emt 0:00:27]} 9. c3 {[%emt 0:00:00]} O-O {[%emt 0:00:17]} 10. O-O {[%emt 0:01:49]} b6 {[%emt 0:06:51]} 11. Qc2 {[%emt 0:04:35]} Bb7 {[%emt 0:00:15]} 12. Rfd1 {[%emt 0:00:12] [#]} a6 $146 {[%emt 0:00:39]} ({Predecessor:} 12... h6 13. h4 a6 14. Nf1 Ne4 15. h5 g5 16. N3d2 f5 17. f3 Nef6 18. Qxf5 Nxh5 {0-1 (34) Basso,L-Biaggi,E (2280) Vicente Lopez 1993}) 13. Bh4 {[%emt 0:01:20][%cal Od2e4]} h6 {[%emt 0:03:11]} 14. Bxf6 {[%emt 0:01:21]} Nxf6 {[%emt 0:00:36]} 15. Nf1 {[%emt 0:01:17]} e4 {[%emt 0:02:01]} 16. Nd4 {[%emt 0:00:56]} Nd7 {[%emt 0:05:09][%cal Bf6d7,Bd7e5,Be5d3][%mdl 32]} 17. Rd2 {[%emt 0:01:32] White is now going downhill.} (17. b4 $15) 17... Ne5 {[%emt 0:01:19]} 18. Qb3 {[%emt 0:03:17]} c5 {[%emt 0:04:03][%cal Bc7c5,Bc5c4][%mdl 32]} 19. Nc2 {[%emt 0:00:18]} b5 {[%emt 0:00:16][%cal Oe5d3]} 20. Ne1 {[%emt 0:01:33]} (20. a4 $17) 20... c4 $19 {[%emt 0:01:01]} 21. Qc2 {[%emt 0:00:05]} f5 {[%emt 0:04:24]} 22. Rad1 {[%emt 0:05:09]} Nd3 {[%emt 0:02:13]} 23. f4 {[%emt 0:01:33]} g5 {[%emt 0:07:40]} 24. g3 {[%emt 0:00:53]} a5 {[%emt 0:05:17]} 25. Ng2 {[%emt 0:00:49]} g4 {[%emt 0:02:59]} 26. Rb1 {[%emt 0:00:57]} Bd5 {[%emt 0:00:26]} 27. Qd1 {[%emt 0:01:38]} Be6 {[%emt 0:00:39]} 28. Rc2 {[%emt 0:01:41]} Rfd8 {[%emt 0:01:53][%cal Od3b2]} 29. Nd2 {[%emt 0:00:07]} Rac8 {[%emt 0:05:34]} 30. a3 {[%emt 0:03:55]} b4 {[%emt 0:02:45] [#] White must now prevent ...b3.} 31. axb4 {[%emt 0:00:35]} axb4 {[%emt 0:00:07]} 32. Bxd3 {[%emt 0:00:06]} exd3 {[%emt 0:08:38]} 33. Rcc1 {[%emt 0:00:15]} bxc3 {[%emt 0:00:40]} 34. bxc3 {[%emt 0:00:03]} Bd5 {[%emt 0:00:16] [#] Inhibits e4. ...Bxg2 is the strong threat.} 35. Qe1 {[%emt 0:00:50]} Re8 {[%emt 0:03:00]} 36. Nf1 {[%emt 0:01:02]} (36. Nh4 $142 Qe6 37. Rb2) 36... Rb8 {[%emt 0:02:05]} 37. Qd2 {[%emt 0:00:25]} Qe4 {[%emt 0:00:36]} 38. Rb2 {[%emt 0:01:20]} Rb3 {[%emt 0:02:52]} 39. Nh4 {[%emt 0:02:58]} Reb8 {[%emt 0:03:12]} (39... Rxb2 $142 40. Qxb2 Qh1+ 41. Kf2 Bf6 42. Rb1 Bxh4 43. gxh4 Bf3 44. h5 Rd8 45. Ke1 d2+ 46. Qxd2 Rxd2 47. Kxd2 Qg2+ 48. Kc1 Qxf1+ 49. Kb2 Qe2+ 50. Ka1 Qc2 51. Rb8+ Kg7 52. e4 Qxc3+ 53. Ka2 Qa5+ 54. Kb1 Bxe4+ 55. Kb2 c3+ 56. Kb3 c2 57. Rc8 Qb6+ 58. Ka3 Qa6+ 59. Kb4 Qxc8 60. h4 c1=Q 61. Kb5 Q8c5+ 62. Ka6 Qf1#) 40. Ra2 {[%emt 0:00:30]} Bf6 {[%emt 0:03:45] A strong pair of Bishops.} 41. Ng2 {[%emt 0:30:29]} Qxg2+ {[%emt 0:33:43]} 42. Qxg2 {[%emt 0:00:09]} Bxg2 {[%emt 0:00:05]} 43. Kxg2 {[%emt 0:00:28]} Rb2+ {[%emt 0:02:05]} 44. Rxb2 {[%emt 0:00:18]} Rxb2+ {[%emt 0:00:00][%mdl 4096] Endgame KRB-KRN} 45. Kg1 {[%emt 0:00:07]} Rc2 {[%emt 0:00:11]} 46. Rb1 {[%emt 0:00:39]} Bxc3 {[%emt 0:00:10] And now ...d2 would win.} 47. Rb5 {[%emt 0:00:28]} d2 {[%emt 0:00:38]} 48. Nxd2 {[%emt 0:00:10]} Bxd2 {[%emt 0:00:14]} 49. Re5 {[%emt 0:00:43]} c3 {[%emt 0:00:37] Black mates.} 50. Kf1 {[%emt 0:00:30]} Bc1 {[%emt 0:01:53]} 51. Rxf5 {[%emt 0:00:23]} Rxh2 {[%emt 0:02:35] Weighted Error Value: White=0.95/Black=0.49} 0-1

[Event "FIDE WSCC 65 2022"]
[Site "Assisi"]
[Date "2022.11.18"]
[Round "4.15"]
[White "Ubezio, Marco"]
[Black "Knaak, Rainer"]
[Result "0-1"]
[ECO "E05"]
[WhiteElo "2070"]
[BlackElo "2457"]
[Annotator "TA"]
[PlyCount "72"]
[EventDate "2022.11.14"]
[EventType "swiss"]
[EventCountry "ITA"]
[SourceTitle "playchess.com"]
[Source "ChessBase"]
[SourceQuality "1"]
[TimeControl "40/5400+30:1800+30"]

{[%evp 19,72,0,17,-36,-35,-34,-32,-32,-34,-41,-31,-47,-38,-59,-52,-37,-47,-41,27,-22,-9,-141,-55,-58,-62,-87,-39,-112,-125,-111,-118,-112,-66,-51,-11,-130,-135,-129,-125,-122,-156,-217,-211,-293,-289,-285,-275,-266,-131,-1728,-358,-659,-594,-1604,-1233]} 1. d4 {[%emt 0:00:08]} d5 {[%emt 0:00:15]} 2. Nf3 {[%emt 0:00:06]} e6 {[%emt 0:00:30]} 3. c4 {[%emt 0:00:07]} Nf6 {[%emt 0:04:13]} 4. g3 {[%emt 0:00:07]} Be7 {[%emt 0:00:57]} 5. Bg2 {[%emt 0:00:06]} O-O {[%emt 0:00:07]} 6. O-O {[%emt 0:00:06]} dxc4 {[%emt 0:00:15]} 7. Ne5 {[%emt 0:01:29]} Nc6 {[%emt 0:00:17]} 8. Nxc6 {[%emt 0:00:34]} bxc6 {[%emt 0:00:05]} 9. Na3 {[%emt 0:00:10]} Bxa3 {[%emt 0:01:57]} 10. bxa3 {[%emt 0:00:07]} Nd5 {[%emt 0:12:31][%cal Bf6d5,Bd5b4,Bb4c6,Bc6d4][%mdl 32]} 11. Qc2 {[%emt 0:12:44] E05: Open Catalan: 5 Nf3 Be7.} ({Better is} 11. Qa4 $11) 11... Ba6 $15 {[%emt 0:04:46]} 12. a4 {[%emt 0:06:12] [#]} Qe7 $146 {[%emt 0:06:33] Inhibits Ba3.} ({Predecessor:} 12... c5 13. dxc5 Qf6 14. Bd2 Rab8 15. Qc1 c3 16. Bg5 Qd4 17. Rd1 Qxc5 18. Bxd5 exd5 {½-½ (28) Blechzin,I (2440)-Arnaudov,P (2489) Hofheim 2013}) 13. e4 {[%emt 0:01:53] Black is slightly better.} Nb4 {[%emt 0:11:20]} 14. Qc3 {[%emt 0:02:04]} e5 {[%emt 0:03:17]} 15. Ba3 {[%emt 0:01:32]} c5 {[%emt 0:00:14]} 16. dxc5 {[%emt 0:05:21]} Nc6 {[%emt 0:00:39]} 17. Rfd1 {[%emt 0:01:33]} Rfd8 {[%emt 0:04:38]} 18. Rd5 {[%emt 0:05:22]} Qe6 {[%emt 0:07:56]} (18... Rab8 $15) 19. Rad1 {[%emt 0:01:39]} (19. Bb2 {is more appropriate.}) 19... Nd4 $11 {[%emt 0:00:21]} 20. Qa5 {[%emt 0:03:40]} (20. Kh1 $11) 20... Bb7 {[%emt 0:09:13]} (20... c3 $1 $17 {White must now prevent ...Bb7.} 21. Qxc7 Qe8) 21. Rxd8+ $15 {[%emt 0:09:14]} Rxd8 {[%emt 0:00:05]} 22. Kh1 {[%emt 0:06:25]} Qc6 {[%emt 0:01:49]} (22... Qe8 $17 {[%cal Od4b5] ...Nb5! is the strong threat.} 23. Rf1 c3 24. Qxc3 Qxa4) 23. Qb4 {[%emt 0:04:22] Prevents Nb5.} ({White should try} 23. Bb2 $15) 23... Ba6 $17 {[%emt 0:02:11]} 24. Bb2 {[%emt 0:00:46]} h5 {[%emt 0:01:47] Black is more active.} 25. h4 {[%emt 0:04:03] [#]} Kh7 {[%emt 0:01:28]} (25... Qf6 $1 $17 {[%cal Rf6f2]} 26. Qe1 Bb7) 26. Rd2 $15 {[%emt 0:04:44]} Qg6 {[%emt 0:01:57]} 27. Qa5 {[%emt 0:01:59]} (27. Qa3 $11 {keeps the balance.}) 27... Nc6 $17 {[%emt 0:00:48]} 28. Qc3 {[%emt 0:00:44] aiming for Rxd8.} Rd3 $36 {[%emt 0:00:39][%mdl 2048] White is under strong pressure.} 29. Rxd3 {[%emt 0:01:38]} cxd3 {[%emt 0:00:05]} 30. Qd2 {[%emt 0:02:01]} (30. Qb3 $17) 30... Qg4 $19 {[%emt 0:05:42]} 31. Kh2 {[%emt 0:02:56]} Qe2 {[%emt 0:00:21]} 32. Bc3 {[%emt 0:05:20] [#]} Nd4 {[%emt 0:05:36]} 33. Kg1 {[%emt 0:11:27]} Bc4 {[%emt 0:02:09]} (33... Bb7 $19 {has better winning chances.} 34. Kh1 Bxe4 35. Qxe2 Bxg2+ 36. Kxg2 Nxe2) 34. Qg5 $2 {[%emt 0:02:09][%mdl 8192]} (34. Ba5 $17) 34... f6 $2 {[%emt 0:00:42]} (34... Qd1+ 35. Kh2 Ne2) 35. Qc1 $2 {[%emt 0:02:00]} (35. Qd2 Bxa2 36. Ba5) 35... Bxa2 {[%emt 0:00:41]} 36. Bxd4 {[%emt 0:01:38]} d2 {[%emt 0:00:13] Weighted Error Value: White=0.82/Black=0.50} 0-1